[Event "Titled Tuesday Blitz March 01 Early 2022"]
[White "Di Nicolantonio, Lucas"]
[Black "Gabrielian, Artur"]
[WhiteFideId "680460"]
[BlackFideId "4131002"]
[WhiteElo "2381"]
[BlackElo "2440"]
[Result "0-1"]
[Round "09"]
[TimeControl "180+1"]
[Date "2022.03.01"]
[WhiteClock "0:00:05"]
[BlackClock "0:00:58"]

1. d4 {[%clk 0:03:00]}  Nf6 {[%clk 0:02:59]} 2. Bg5 {[%clk 0:02:59]}  g6 {[%clk 0:02:58]} 3. Bxf6 {[%clk 0:02:59]}  exf6 {[%clk 0:02:59]} 4. e3 {[%clk 0:02:58]}  d5 {[%clk 0:02:59]} 5. g3 {[%clk 0:02:58]}  c6 {[%clk 0:02:59]} 6. Bg2 {[%clk 0:02:58]}  Bd6 {[%clk 0:03:00]} 7. Ne2 {[%clk 0:02:58]}  f5 {[%clk 0:02:59]} 8. Nd2 {[%clk 0:02:54]}  Nd7 {[%clk 0:02:59]} 9. c4 {[%clk 0:02:52]}  dxc4 {[%clk 0:02:58]} 10. Nxc4 {[%clk 0:02:53]}  Bb4+ {[%clk 0:02:57]} 11. Nc3 {[%clk 0:02:52]}  Nf6 {[%clk 0:02:56]} 12. Qb3 {[%clk 0:02:44]}  Be7 {[%clk 0:02:48]} 13. O-O {[%clk 0:02:38]}  O-O {[%clk 0:02:47]} 14. Ne5 {[%clk 0:02:32]}  Qb6 {[%clk 0:02:35]} 15. Nc4 {[%clk 0:01:25]}  Qa6 {[%clk 0:02:23]} 16. Ne5 {[%clk 0:00:51]}  Be6 {[%clk 0:02:22]} 17. Qc2 {[%clk 0:00:51]}  Rac8 {[%clk 0:02:18]} 18. a3 {[%clk 0:00:49]}  Bd6 {[%clk 0:01:55]} 19. b4 {[%clk 0:00:42]}  Bxe5 {[%clk 0:01:55]} 20. dxe5 {[%clk 0:00:43]}  Ng4 {[%clk 0:01:56]} 21. Na4 {[%clk 0:00:33]}  Nxe5 {[%clk 0:01:53]} 22. Nc5 {[%clk 0:00:33]}  Qc4 {[%clk 0:01:47]} 23. Qb2 {[%clk 0:00:26]}  Nd3 {[%clk 0:01:45]} 24. Nxd3 {[%clk 0:00:25]}  Qxd3 {[%clk 0:01:45]} 25. Rfd1 {[%clk 0:00:23]}  Qb5 {[%clk 0:01:34]} 26. Qf6 {[%clk 0:00:21]}  Qb6 {[%clk 0:01:31]} 27. h4 {[%clk 0:00:18]}  h5 {[%clk 0:01:29]} 28. Bf3 {[%clk 0:00:17]}  Rfd8 {[%clk 0:01:27]} 29. Bxh5 {[%clk 0:00:14]}  gxh5 {[%clk 0:01:25]} 30. Qg5+ {[%clk 0:00:15]}  Kf8 {[%clk 0:01:26]} 31. Qxh5 {[%clk 0:00:15]}  Rxd1+ {[%clk 0:01:21]} 32. Rxd1 {[%clk 0:00:16]}  Rd8 {[%clk 0:01:17]} 33. Qh6+ {[%clk 0:00:09]}  Ke7 {[%clk 0:01:11]} 34. Rxd8 {[%clk 0:00:07]}  Qxd8 {[%clk 0:01:09]} 35. h5 {[%clk 0:00:08]}  Qd1+ {[%clk 0:01:08]} 36. Kh2 {[%clk 0:00:07]}  Bd5 {[%clk 0:00:58]} 37. Qg5+ {[%clk 0:00:07]}  Ke6 {[%clk 0:00:59]} 38. e4 {[%clk 0:00:05]}  Bxe4 {[%clk 0:00:59]} 39. Qh6+ {[%clk 0:00:05]}  Kd7 {[%clk 0:00:58]} 0-1


[Site "https://www.chess.com"]

[Event "Titled Tuesday Blitz March 01 Early 2022"]
[White "Dolzhykova, Kateryna"]
[Black "Kouskoutis, Georgios-Alexandros"]
[WhiteFideId "14113414"]
[BlackFideId "4234049"]
[WhiteElo "2165"]
[BlackElo "2130"]
[Result "1-0"]
[Round "09"]
[TimeControl "180+1"]
[Date "2022.03.01"]
[WhiteClock "0:00:22"]
[BlackClock "0:00:04"]

1. e4 {[%clk 0:03:00]}  c5 {[%clk 0:02:58]} 2. Nf3 {[%clk 0:03:00]}  e6 {[%clk 0:02:54]} 3. d3 {[%clk 0:03:00]}  Nc6 {[%clk 0:02:51]} 4. g3 {[%clk 0:03:00]}  g6 {[%clk 0:02:50]} 5. Bg2 {[%clk 0:03:00]}  Bg7 {[%clk 0:02:50]} 6. O-O {[%clk 0:02:59]}  Nge7 {[%clk 0:02:50]} 7. Nc3 {[%clk 0:02:54]}  O-O {[%clk 0:02:39]} 8. Be3 {[%clk 0:02:53]}  Nd4 {[%clk 0:02:39]} 9. Ne2 {[%clk 0:02:38]}  Nxf3+ {[%clk 0:02:04]} 10. Bxf3 {[%clk 0:02:37]}  d6 {[%clk 0:01:58]} 11. c3 {[%clk 0:02:22]}  Qc7 {[%clk 0:01:33]} 12. Qd2 {[%clk 0:02:16]}  b6 {[%clk 0:01:28]} 13. h4 {[%clk 0:02:01]}  Bb7 {[%clk 0:01:15]} 14. h5 {[%clk 0:01:57]}  d5 {[%clk 0:01:05]} 15. Bh6 {[%clk 0:01:48]}  dxe4 {[%clk 0:00:55]} 16. dxe4 {[%clk 0:01:49]}  Rad8 {[%clk 0:00:55]} 17. Qg5 {[%clk 0:01:47]}  f6 {[%clk 0:00:43]} 18. Qe3 {[%clk 0:01:46]}  g5 {[%clk 0:00:43]} 19. Bxg7 {[%clk 0:01:34]}  Kxg7 {[%clk 0:00:44]} 20. Bg2 {[%clk 0:01:35]}  e5 {[%clk 0:00:39]} 21. f4 {[%clk 0:01:32]}  h6 {[%clk 0:00:39]} 22. fxg5 {[%clk 0:01:24]}  fxg5 {[%clk 0:00:38]} 23. g4 {[%clk 0:01:24]}  Rf4 {[%clk 0:00:29]} 24. Nxf4 {[%clk 0:01:19]}  exf4 {[%clk 0:00:30]} 25. Qe2 {[%clk 0:01:15]}  Nc6 {[%clk 0:00:21]} 26. e5 {[%clk 0:01:10]}  Re8 {[%clk 0:00:18]} 27. e6 {[%clk 0:01:10]}  Bc8 {[%clk 0:00:06]} 28. Bd5 {[%clk 0:00:59]}  Ne7 {[%clk 0:00:02]} 29. Bc4 {[%clk 0:00:57]}  b5 {[%clk 0:00:01]} 30. Bxb5 {[%clk 0:00:56]}  Rd8 {[%clk 0:00:02]} 31. Rad1 {[%clk 0:00:54]}  c4 {[%clk 0:00:02]} 32. Rxd8 {[%clk 0:00:51]}  Qxd8 {[%clk 0:00:03]} 33. Qe5+ {[%clk 0:00:48]}  Kg8 {[%clk 0:00:03]} 34. Bxc4 {[%clk 0:00:44]}  Qb6+ {[%clk 0:00:02]} 35. Qd4 {[%clk 0:00:45]}  Qxd4+ {[%clk 0:00:02]} 36. cxd4 {[%clk 0:00:46]}  Bb7 {[%clk 0:00:03]} 37. Rd1 {[%clk 0:00:42]}  Nd5 {[%clk 0:00:02]} 38. Bxd5 {[%clk 0:00:40]}  Bxd5 {[%clk 0:00:03]} 39. e7 {[%clk 0:00:41]}  Kf7 {[%clk 0:00:04]} 40. Re1 {[%clk 0:00:41]}  Ke8 {[%clk 0:00:04]} 41. a3 {[%clk 0:00:41]}  Bf3 {[%clk 0:00:04]} 42. Kf2 {[%clk 0:00:39]}  Bxg4 {[%clk 0:00:05]} 43. d5 {[%clk 0:00:40]}  Bxh5 {[%clk 0:00:04]} 44. d6 {[%clk 0:00:41]}  Bg4 {[%clk 0:00:05]} 45. b4 {[%clk 0:00:36]}  Bd7 {[%clk 0:00:04]} 46. Rh1 {[%clk 0:00:31]}  g4 {[%clk 0:00:04]} 47. Rxh6 {[%clk 0:00:28]}  g3+ {[%clk 0:00:05]} 48. Kg1 {[%clk 0:00:29]}  f3 {[%clk 0:00:04]} 49. Rh8+ {[%clk 0:00:28]}  Kf7 {[%clk 0:00:04]} 50. Rf8+ {[%clk 0:00:29]}  Kg7 {[%clk 0:00:04]} 51. e8=Q {[%clk 0:00:29]}  f2+ {[%clk 0:00:04]} 52. Kg2 {[%clk 0:00:22]} 1-0


[Site "https://www.chess.com"]

[Event "Titled Tuesday Blitz March 01 Early 2022"]
[White "Dubov, Daniil"]
[Black "Ahmadzada, Ahmad"]
[WhiteFideId "24126055"]
[BlackFideId "13413007"]
[WhiteElo "2791"]
[BlackElo "2228"]
[Result "1-0"]
[Round "09"]
[TimeControl "180+1"]
[Date "2022.03.01"]
[WhiteClock "0:00:12"]
[BlackClock "0:00:02"]

1. e4 {[%clk 0:03:00]}  e5 {[%clk 0:02:58]} 2. Nf3 {[%clk 0:03:00]}  Nf6 {[%clk 0:02:59]} 3. Nc3 {[%clk 0:03:00]}  Bb4 {[%clk 0:02:58]} 4. Nxe5 {[%clk 0:03:01]}  O-O {[%clk 0:02:59]} 5. Nd3 {[%clk 0:02:59]}  Bxc3 {[%clk 0:02:59]} 6. dxc3 {[%clk 0:03:00]}  Nxe4 {[%clk 0:02:59]} 7. Nf4 {[%clk 0:03:00]}  Re8 {[%clk 0:02:58]} 8. Be2 {[%clk 0:03:00]}  d6 {[%clk 0:02:56]} 9. O-O {[%clk 0:03:00]}  Nd7 {[%clk 0:02:56]} 10. c4 {[%clk 0:02:59]}  Ndf6 {[%clk 0:02:54]} 11. a4 {[%clk 0:02:58]}  a5 {[%clk 0:02:46]} 12. Ra3 {[%clk 0:02:58]}  b6 {[%clk 0:02:45]} 13. Re3 {[%clk 0:02:57]}  Bb7 {[%clk 0:02:43]} 14. b3 {[%clk 0:02:56]}  Nc5 {[%clk 0:02:38]} 15. Rxe8+ {[%clk 0:02:45]}  Qxe8 {[%clk 0:02:38]} 16. Bb2 {[%clk 0:02:45]}  Ne6 {[%clk 0:02:19]} 17. Nd5 {[%clk 0:02:13]}  Nxd5 {[%clk 0:01:48]} 18. cxd5 {[%clk 0:02:14]}  Bxd5 {[%clk 0:01:36]} 19. Qxd5 {[%clk 0:02:14]}  Nf4 {[%clk 0:01:36]} 20. Qf3 {[%clk 0:01:53]}  Nxe2+ {[%clk 0:01:14]} 21. Kh1 {[%clk 0:01:53]}  c5 {[%clk 0:01:02]} 22. Rd1 {[%clk 0:01:27]}  Nd4 {[%clk 0:00:53]} 23. Bxd4 {[%clk 0:01:26]}  cxd4 {[%clk 0:00:53]} 24. g3 {[%clk 0:01:26]}  Rc8 {[%clk 0:00:51]} 25. Rxd4 {[%clk 0:01:24]}  Rxc2 {[%clk 0:00:38]} 26. Rxd6 {[%clk 0:01:21]}  g6 {[%clk 0:00:22]} 27. Kg2 {[%clk 0:01:06]}  Rc1 {[%clk 0:00:16]} 28. Qf6 {[%clk 0:00:36]}  Qe4+ {[%clk 0:00:09]} 29. f3 {[%clk 0:00:29]}  Qe2+ {[%clk 0:00:04]} 30. Kh3 {[%clk 0:00:28]}  Rc8 {[%clk 0:00:03]} 31. Rxb6 {[%clk 0:00:19]}  h5 {[%clk 0:00:03]} 32. Rd6 {[%clk 0:00:17]}  Qf1+ {[%clk 0:00:03]} 33. Kh4 {[%clk 0:00:17]}  Qe2 {[%clk 0:00:04]} 34. h3 {[%clk 0:00:15]}  Qe3 {[%clk 0:00:03]} 35. f4 {[%clk 0:00:13]}  Qe4 {[%clk 0:00:02]} 36. Kg5 {[%clk 0:00:12]} 1-0


[Site "https://www.chess.com"]

[Event "Titled Tuesday Blitz March 01 Early 2022"]
[White "Gerbelli Neto, Eduardo"]
[Black "Pasti, Aron"]
[WhiteFideId "2103281"]
[BlackFideId "785857"]
[WhiteElo "2178"]
[BlackElo "2080"]
[Result "1-0"]
[Round "09"]
[TimeControl "180+1"]
[Date "2022.03.01"]
[WhiteClock "0:01:00"]
[BlackClock "0:00:06"]

1. e4 {[%clk 0:03:00]}  e5 {[%clk 0:02:53]} 2. Nc3 {[%clk 0:02:59]}  Nf6 {[%clk 0:02:52]} 3. f4 {[%clk 0:02:59]}  d6 {[%clk 0:02:48]} 4. Nf3 {[%clk 0:02:57]}  Nc6 {[%clk 0:02:46]} 5. Bb5 {[%clk 0:02:57]}  Bg4 {[%clk 0:02:37]} 6. O-O {[%clk 0:02:56]}  a6 {[%clk 0:02:29]} 7. Bxc6+ {[%clk 0:02:56]}  bxc6 {[%clk 0:02:27]} 8. d3 {[%clk 0:02:57]}  Be7 {[%clk 0:02:26]} 9. h3 {[%clk 0:02:53]}  Bxf3 {[%clk 0:02:22]} 10. Qxf3 {[%clk 0:02:54]}  Qd7 {[%clk 0:02:19]} 11. fxe5 {[%clk 0:02:48]}  dxe5 {[%clk 0:02:16]} 12. Be3 {[%clk 0:02:48]}  O-O {[%clk 0:02:14]} 13. Qg3 {[%clk 0:02:36]}  Bd6 {[%clk 0:01:57]} 14. Rxf6 {[%clk 0:02:34]}  Be7 {[%clk 0:01:49]} 15. Rf2 {[%clk 0:02:29]}  Rab8 {[%clk 0:01:47]} 16. b3 {[%clk 0:02:28]}  Qd8 {[%clk 0:01:35]} 17. Bh6 {[%clk 0:02:25]}  Bf6 {[%clk 0:01:27]} 18. Raf1 {[%clk 0:02:15]}  Kh8 {[%clk 0:01:25]} 19. Rxf6 {[%clk 0:02:12]}  Qd4+ {[%clk 0:01:23]} 20. Kh2 {[%clk 0:02:01]}  Rg8 {[%clk 0:01:15]} 21. Ne2 {[%clk 0:01:54]}  Qc5 {[%clk 0:00:41]} 22. Be3 {[%clk 0:01:21]}  Qxc2 {[%clk 0:00:29]} 23. Qf3 {[%clk 0:01:21]}  gxf6 {[%clk 0:00:21]} 24. Qxf6+ {[%clk 0:01:21]}  Rg7 {[%clk 0:00:21]} 25. Bh6 {[%clk 0:01:21]}  Rg8 {[%clk 0:00:21]} 26. Bxg7+ {[%clk 0:01:17]}  Rxg7 {[%clk 0:00:20]} 27. Ng3 {[%clk 0:01:11]}  Qxd3 {[%clk 0:00:14]} 28. Nh5 {[%clk 0:01:00]}  Qxf1 {[%clk 0:00:06]} 29. Qxg7# {[%clk 0:01:00]} 1-0


[Site "https://www.chess.com"]

[Event "Titled Tuesday Blitz March 01 Early 2022"]
[White "Golubev, Mikhail"]
[Black "Alavi, Sayed Javad"]
[WhiteFideId "14100983"]
[BlackFideId "12500607"]
[WhiteElo "2374"]
[BlackElo "2475"]
[Result "0-1"]
[Round "09"]
[TimeControl "180+1"]
[Date "2022.03.01"]
[WhiteClock "0:00:01"]
[BlackClock "0:00:03"]

1. e4 {[%clk 0:03:00]}  c5 {[%clk 0:02:59]} 2. Nf3 {[%clk 0:03:01]}  e6 {[%clk 0:03:00]} 3. d4 {[%clk 0:03:01]}  cxd4 {[%clk 0:03:01]} 4. Nxd4 {[%clk 0:03:01]}  Nc6 {[%clk 0:02:59]} 5. Nc3 {[%clk 0:03:01]}  Qc7 {[%clk 0:02:59]} 6. Be3 {[%clk 0:03:01]}  a6 {[%clk 0:02:57]} 7. a3 {[%clk 0:03:01]}  b5 {[%clk 0:02:35]} 8. Nxc6 {[%clk 0:03:00]}  Qxc6 {[%clk 0:02:36]} 9. Bd3 {[%clk 0:03:00]}  Bb7 {[%clk 0:02:36]} 10. O-O {[%clk 0:03:00]}  Bc5 {[%clk 0:02:29]} 11. Qg4 {[%clk 0:02:46]}  g6 {[%clk 0:02:24]} 12. Rae1 {[%clk 0:02:41]}  Nf6 {[%clk 0:02:13]} 13. Qh4 {[%clk 0:02:34]}  Nh5 {[%clk 0:00:58]} 14. Nd5 {[%clk 0:02:18]}  O-O {[%clk 0:00:45]} 15. Nf6+ {[%clk 0:01:53]}  Nxf6 {[%clk 0:00:44]} 16. Qxf6 {[%clk 0:01:53]}  Rfe8 {[%clk 0:00:43]} 17. Bh6 {[%clk 0:01:49]}  Bf8 {[%clk 0:00:44]} 18. Bxf8 {[%clk 0:01:49]}  Rxf8 {[%clk 0:00:45]} 19. f4 {[%clk 0:01:43]}  Rae8 {[%clk 0:00:37]} 20. b4 {[%clk 0:01:15]}  d5 {[%clk 0:00:33]} 21. e5 {[%clk 0:01:11]}  d4 {[%clk 0:00:24]} 22. Rf3 {[%clk 0:01:05]}  Qc3 {[%clk 0:00:22]} 23. Rff1 {[%clk 0:00:42]}  Qxa3 {[%clk 0:00:20]} 24. h4 {[%clk 0:00:40]}  Qxb4 {[%clk 0:00:14]} 25. Qg5 {[%clk 0:00:37]}  Qe7 {[%clk 0:00:15]} 26. Qh6 {[%clk 0:00:35]}  Kh8 {[%clk 0:00:15]} 27. Kh2 {[%clk 0:00:15]}  Rg8 {[%clk 0:00:15]} 28. g3 {[%clk 0:00:15]}  Qf8 {[%clk 0:00:14]} 29. Qg5 {[%clk 0:00:14]}  Qe7 {[%clk 0:00:15]} 30. Qh6 {[%clk 0:00:14]}  Qf8 {[%clk 0:00:15]} 31. Qg5 {[%clk 0:00:14]}  h5 {[%clk 0:00:15]} 32. g4 {[%clk 0:00:11]}  Rg7 {[%clk 0:00:11]} 33. gxh5 {[%clk 0:00:10]}  Qe7 {[%clk 0:00:11]} 34. hxg6 {[%clk 0:00:07]}  Qxg5 {[%clk 0:00:10]} 35. fxg5 {[%clk 0:00:07]}  fxg6 {[%clk 0:00:11]} 36. Rf6 {[%clk 0:00:07]}  Rc8 {[%clk 0:00:08]} 37. Bxg6 {[%clk 0:00:04]}  Bd5 {[%clk 0:00:07]} 38. Ref1 {[%clk 0:00:02]}  a5 {[%clk 0:00:03]} 39. h5 {[%clk 0:00:02]}  a4 {[%clk 0:00:03]} 40. h6 {[%clk 0:00:02]}  Rgg8 {[%clk 0:00:02]} 41. Kg3 {[%clk 0:00:01]}  a3 {[%clk 0:00:02]} 42. Kh4 {[%clk 0:00:02]}  a2 {[%clk 0:00:02]} 43. Rf7 {[%clk 0:00:01]}  d3 {[%clk 0:00:03]} 0-1


[Site "https://www.chess.com"]

[Event "Titled Tuesday Blitz March 01 Early 2022"]
[White "Gubanov, Oleg"]
[Black "P., Komal Kishore"]
[WhiteFideId "14115115"]
[BlackFideId "5016703"]
[WhiteElo "2080"]
[BlackElo "2093"]
[Result "1-0"]
[Round "09"]
[TimeControl "180+1"]
[Date "2022.03.01"]
[WhiteClock "0:01:15"]
[BlackClock "0:00:01"]

1. e4 {[%clk 0:02:59]}  c6 {[%clk 0:02:59]} 2. d4 {[%clk 0:02:59]}  d5 {[%clk 0:03:00]} 3. e5 {[%clk 0:02:59]}  Bf5 {[%clk 0:02:59]} 4. g4 {[%clk 0:02:59]}  Be4 {[%clk 0:02:59]} 5. f3 {[%clk 0:02:58]}  Bg6 {[%clk 0:02:59]} 6. e6 {[%clk 0:02:59]}  Qd6 {[%clk 0:02:45]} 7. exf7+ {[%clk 0:02:57]}  Bxf7 {[%clk 0:02:44]} 8. Nc3 {[%clk 0:02:57]}  e5 {[%clk 0:02:43]} 9. dxe5 {[%clk 0:02:53]}  Qxe5+ {[%clk 0:02:42]} 10. Nge2 {[%clk 0:02:53]}  Bb4 {[%clk 0:02:25]} 11. Bf4 {[%clk 0:02:49]}  Bxc3+ {[%clk 0:02:24]} 12. bxc3 {[%clk 0:02:50]}  Qe7 {[%clk 0:02:23]} 13. Qd4 {[%clk 0:02:42]}  Nf6 {[%clk 0:02:15]} 14. g5 {[%clk 0:02:13]}  Nh5 {[%clk 0:02:13]} 15. Bd2 {[%clk 0:02:13]}  O-O {[%clk 0:02:09]} 16. Bh3 {[%clk 0:02:06]}  Na6 {[%clk 0:01:59]} 17. Bg4 {[%clk 0:02:01]}  Rae8 {[%clk 0:01:56]} 18. f4 {[%clk 0:01:59]}  c5 {[%clk 0:01:21]} 19. Qf2 {[%clk 0:01:49]}  Bg6 {[%clk 0:01:13]} 20. O-O {[%clk 0:01:44]}  Bf7 {[%clk 0:00:35]} 21. Rae1 {[%clk 0:01:41]}  Qd6 {[%clk 0:00:20]} 22. f5 {[%clk 0:01:37]}  g6 {[%clk 0:00:15]} 23. Qh4 {[%clk 0:01:32]}  Nc7 {[%clk 0:00:10]} 24. Bxh5 {[%clk 0:01:27]}  gxh5 {[%clk 0:00:09]} 25. Ng3 {[%clk 0:01:27]}  Rxe1 {[%clk 0:00:02]} 26. Rxe1 {[%clk 0:01:27]}  Be8 {[%clk 0:00:02]} 27. Rf1 {[%clk 0:01:21]}  d4 {[%clk 0:00:01]} 28. Nxh5 {[%clk 0:01:15]} 1-0


[Site "https://www.chess.com"]

[Event "Titled Tuesday Blitz March 01 Early 2022"]
[White "Hakemi, Arman"]
[Black "Roberson, Peter T"]
[WhiteFideId "22520805"]
[BlackFideId "412384"]
[WhiteElo "2208"]
[BlackElo "2346"]
[Result "1-0"]
[Round "09"]
[TimeControl "180+1"]
[Date "2022.03.01"]
[WhiteClock "0:01:35"]
[BlackClock "0:00:14"]

1. e4 {[%clk 0:03:00]}  e6 {[%clk 0:02:54]} 2. d4 {[%clk 0:02:58]}  d5 {[%clk 0:02:55]} 3. Nc3 {[%clk 0:02:58]}  Nf6 {[%clk 0:02:55]} 4. e5 {[%clk 0:02:58]}  Nfd7 {[%clk 0:02:56]} 5. f4 {[%clk 0:02:59]}  c5 {[%clk 0:02:56]} 6. Nf3 {[%clk 0:03:00]}  Be7 {[%clk 0:02:54]} 7. Be3 {[%clk 0:02:57]}  O-O {[%clk 0:02:54]} 8. Qd2 {[%clk 0:02:49]}  b6 {[%clk 0:02:51]} 9. Be2 {[%clk 0:02:47]}  Ba6 {[%clk 0:02:50]} 10. O-O {[%clk 0:02:43]}  Bxe2 {[%clk 0:02:50]} 11. Nxe2 {[%clk 0:02:44]}  Nc6 {[%clk 0:02:51]} 12. c3 {[%clk 0:02:39]}  f5 {[%clk 0:02:51]} 13. Kh1 {[%clk 0:02:35]}  a5 {[%clk 0:02:47]} 14. Rg1 {[%clk 0:02:35]}  b5 {[%clk 0:02:46]} 15. g4 {[%clk 0:02:34]}  b4 {[%clk 0:02:44]} 16. gxf5 {[%clk 0:02:32]}  Rxf5 {[%clk 0:02:44]} 17. Rg4 {[%clk 0:02:28]}  a4 {[%clk 0:02:05]} 18. Rag1 {[%clk 0:02:21]}  g6 {[%clk 0:02:04]} 19. dxc5 {[%clk 0:02:02]}  Nxc5 {[%clk 0:01:57]} 20. Ned4 {[%clk 0:02:01]}  Ne4 {[%clk 0:01:50]} 21. Qg2 {[%clk 0:01:58]}  Nxd4 {[%clk 0:01:40]} 22. Rxg6+ {[%clk 0:01:55]}  Kh8 {[%clk 0:00:56]} 23. Rg7 {[%clk 0:01:42]}  Qf8 {[%clk 0:00:32]} 24. Nxd4 {[%clk 0:01:40]}  Ng5 {[%clk 0:00:17]} 25. Nxf5 {[%clk 0:01:32]}  exf5 {[%clk 0:00:13]} 26. Rxg5 {[%clk 0:01:32]}  Bxg5 {[%clk 0:00:13]} 27. Qxg5 {[%clk 0:01:33]}  bxc3 {[%clk 0:00:13]} 28. bxc3 {[%clk 0:01:31]}  d4 {[%clk 0:00:13]} 29. Bxd4 {[%clk 0:01:32]}  Rd8 {[%clk 0:00:12]} 30. Qxd8 {[%clk 0:01:30]}  Qxd8 {[%clk 0:00:10]} 31. e6+ {[%clk 0:01:30]}  Qxd4 {[%clk 0:00:11]} 32. cxd4 {[%clk 0:01:31]}  a3 {[%clk 0:00:12]} 33. e7 {[%clk 0:01:32]}  h5 {[%clk 0:00:12]} 34. e8=Q+ {[%clk 0:01:33]}  Kh7 {[%clk 0:00:13]} 35. Qg6+ {[%clk 0:01:34]}  Kh8 {[%clk 0:00:14]} 36. Qg7# {[%clk 0:01:35]} 1-0


[Site "https://www.chess.com"]

[Event "Titled Tuesday Blitz March 01 Early 2022"]
[White "Dronavalli, Harika"]
[Black "Horak, Martin"]
[WhiteFideId "5015197"]
[BlackFideId "367095"]
[WhiteElo "2382"]
[BlackElo "1997"]
[Result "1/2-1/2"]
[Round "09"]
[TimeControl "180+1"]
[Date "2022.03.01"]
[WhiteClock "0:00:37"]
[BlackClock "0:00:06"]

1. Nf3 {[%clk 0:03:00]}  Nf6 {[%clk 0:02:57]} 2. c4 {[%clk 0:03:01]}  b6 {[%clk 0:02:53]} 3. g3 {[%clk 0:03:01]}  Bb7 {[%clk 0:02:53]} 4. Bg2 {[%clk 0:03:02]}  e6 {[%clk 0:02:52]} 5. O-O {[%clk 0:03:02]}  c5 {[%clk 0:02:52]} 6. b3 {[%clk 0:03:02]}  Be7 {[%clk 0:02:52]} 7. Bb2 {[%clk 0:03:03]}  O-O {[%clk 0:02:53]} 8. e3 {[%clk 0:03:03]}  d5 {[%clk 0:02:42]} 9. Nc3 {[%clk 0:03:03]}  Nc6 {[%clk 0:02:34]} 10. cxd5 {[%clk 0:03:04]}  Nxd5 {[%clk 0:02:33]} 11. Nxd5 {[%clk 0:03:04]}  Qxd5 {[%clk 0:02:23]} 12. d4 {[%clk 0:03:04]}  Rfd8 {[%clk 0:01:52]} 13. Ne5 {[%clk 0:02:52]}  Qd6 {[%clk 0:01:45]} 14. Qf3 {[%clk 0:02:42]}  Nxe5 {[%clk 0:01:36]} 15. dxe5 {[%clk 0:02:11]}  Qd5 {[%clk 0:01:00]} 16. e4 {[%clk 0:01:30]}  Qd3 {[%clk 0:00:59]} 17. Rfd1 {[%clk 0:01:16]}  Qxf3 {[%clk 0:00:57]} 18. Bxf3 {[%clk 0:01:16]}  Rxd1+ {[%clk 0:00:56]} 19. Rxd1 {[%clk 0:01:16]}  Rd8 {[%clk 0:00:57]} 20. Rxd8+ {[%clk 0:01:16]}  Bxd8 {[%clk 0:00:58]} 21. Kf1 {[%clk 0:01:15]}  Ba6+ {[%clk 0:00:50]} 22. Be2 {[%clk 0:01:14]}  Bxe2+ {[%clk 0:00:49]} 23. Kxe2 {[%clk 0:01:14]}  Kf8 {[%clk 0:00:50]} 24. Kd3 {[%clk 0:01:14]}  b5 {[%clk 0:00:46]} 25. a4 {[%clk 0:01:13]}  a6 {[%clk 0:00:45]} 26. axb5 {[%clk 0:01:06]}  axb5 {[%clk 0:00:46]} 27. Bc1 {[%clk 0:01:07]}  h5 {[%clk 0:00:37]} 28. Kc2 {[%clk 0:01:01]}  Ke8 {[%clk 0:00:24]} 29. f4 {[%clk 0:00:56]}  Kd7 {[%clk 0:00:24]} 30. Be3 {[%clk 0:00:54]}  Kc6 {[%clk 0:00:24]} 31. h3 {[%clk 0:00:54]}  g6 {[%clk 0:00:22]} 32. Kd3 {[%clk 0:00:54]}  Bb6 {[%clk 0:00:22]} 33. Bd2 {[%clk 0:00:51]}  Bc7 {[%clk 0:00:21]} 34. g4 {[%clk 0:00:50]}  hxg4 {[%clk 0:00:19]} 35. hxg4 {[%clk 0:00:51]}  Bb6 {[%clk 0:00:19]} 36. Bc3 {[%clk 0:00:51]}  Bc7 {[%clk 0:00:17]} 37. Bb2 {[%clk 0:00:51]}  Ba5 {[%clk 0:00:16]} 38. Bc1 {[%clk 0:00:51]}  Be1 {[%clk 0:00:15]} 39. Be3 {[%clk 0:00:50]}  Bg3 {[%clk 0:00:15]} 40. Ke2 {[%clk 0:00:45]}  g5 {[%clk 0:00:14]} 41. f5 {[%clk 0:00:42]}  Bxe5 {[%clk 0:00:11]} 42. Bxg5 {[%clk 0:00:42]}  c4 {[%clk 0:00:10]} 43. bxc4 {[%clk 0:00:42]}  bxc4 {[%clk 0:00:11]} 44. Be3 {[%clk 0:00:43]}  Kb5 {[%clk 0:00:11]} 45. Kd1 {[%clk 0:00:42]}  exf5 {[%clk 0:00:09]} 46. exf5 {[%clk 0:00:42]}  c3 {[%clk 0:00:09]} 47. Kc2 {[%clk 0:00:42]}  Kc4 {[%clk 0:00:09]} 48. g5 {[%clk 0:00:43]}  Kd5 {[%clk 0:00:06]} 49. Kd3 {[%clk 0:00:42]}  c2 {[%clk 0:00:06]} 50. g6 {[%clk 0:00:38]}  fxg6 {[%clk 0:00:06]} 51. fxg6 {[%clk 0:00:39]}  Bg7 {[%clk 0:00:05]} 52. Bc1 {[%clk 0:00:37]}  Ke6 {[%clk 0:00:05]} 53. Kxc2 {[%clk 0:00:37]}  Kf5 {[%clk 0:00:05]} 54. Kd3 {[%clk 0:00:37]}  Kxg6 {[%clk 0:00:06]} 1/2-1/2


[Site "https://www.chess.com"]

[Event "Titled Tuesday Blitz March 01 Early 2022"]
[White "Jaskolka, Tomasz"]
[Black "Hoffmann, Asa"]
[WhiteFideId "1170791"]
[BlackFideId "2001470"]
[WhiteElo "2054"]
[BlackElo "2117"]
[Result "1-0"]
[Round "09"]
[TimeControl "180+1"]
[Date "2022.03.01"]
[WhiteClock "0:00:11"]
[BlackClock "0:00:31"]

1. d4 {[%clk 0:03:00]}  Nf6 {[%clk 0:02:28]} 2. Bf4 {[%clk 0:02:58]}  d6 {[%clk 0:02:24]} 3. Nc3 {[%clk 0:02:56]}  c6 {[%clk 0:02:20]} 4. e4 {[%clk 0:02:53]}  Qa5 {[%clk 0:02:17]} 5. Qd2 {[%clk 0:02:52]}  b5 {[%clk 0:02:16]} 6. Bd3 {[%clk 0:02:47]}  Nbd7 {[%clk 0:02:15]} 7. f3 {[%clk 0:02:44]}  e5 {[%clk 0:02:15]} 8. dxe5 {[%clk 0:02:44]}  dxe5 {[%clk 0:02:14]} 9. Be3 {[%clk 0:02:44]}  Bc5 {[%clk 0:02:14]} 10. Nge2 {[%clk 0:02:42]}  Qb6 {[%clk 0:02:12]} 11. Bxc5 {[%clk 0:02:42]}  Nxc5 {[%clk 0:02:11]} 12. Qg5 {[%clk 0:02:31]}  O-O {[%clk 0:01:55]} 13. Qxe5 {[%clk 0:02:26]}  Re8 {[%clk 0:01:54]} 14. Qg3 {[%clk 0:02:21]}  Be6 {[%clk 0:01:51]} 15. Qf2 {[%clk 0:02:19]}  Red8 {[%clk 0:01:48]} 16. Rd1 {[%clk 0:02:17]}  b4 {[%clk 0:01:47]} 17. Nb1 {[%clk 0:02:10]}  Bxa2 {[%clk 0:01:45]} 18. Nf4 {[%clk 0:01:56]}  b3 {[%clk 0:01:37]} 19. Nc3 {[%clk 0:00:58]}  bxc2 {[%clk 0:01:20]} 20. Bxc2 {[%clk 0:00:58]}  Bc4 {[%clk 0:01:17]} 21. Bb1 {[%clk 0:00:32]}  g5 {[%clk 0:01:04]} 22. Qg3 {[%clk 0:00:25]}  h6 {[%clk 0:00:57]} 23. h4 {[%clk 0:00:23]}  Qxb2 {[%clk 0:00:54]} 24. hxg5 {[%clk 0:00:19]}  Qxc3+ {[%clk 0:00:54]} 25. Kf2 {[%clk 0:00:19]}  Nfxe4+ {[%clk 0:00:44]} 26. fxe4 {[%clk 0:00:12]}  Qxg3+ {[%clk 0:00:43]} 27. Kxg3 {[%clk 0:00:12]}  hxg5 {[%clk 0:00:42]} 28. Rxd8+ {[%clk 0:00:10]}  Rxd8 {[%clk 0:00:41]} 29. Nh5 {[%clk 0:00:11]}  Rd6 {[%clk 0:00:37]} 30. e5 {[%clk 0:00:11]}  Re6 {[%clk 0:00:37]} 31. Nf6+ {[%clk 0:00:12]}  Kf8 {[%clk 0:00:36]} 32. Rh8+ {[%clk 0:00:11]}  Ke7 {[%clk 0:00:31]} 33. Re8# {[%clk 0:00:11]} 1-0


[Site "https://www.chess.com"]